[Event "Turkish Women-ch Arzum 2022"]
[Site "Ayvalik"]
[Date "2022.03.11"]
[Round "9.15"]
[White "Baloglu, Dila"]
[Black "Kucuk, Aybike"]
[Result "1-0"]
[ECO "B43"]
[WhiteElo "1630"]
[BlackElo "1439"]
[Annotator "NA"]
[PlyCount "77"]
[EventDate "2022.03.04"]
[EventType "swiss"]
[EventCountry "TUR"]
[SourceTitle "playchess.com"]
[Source "ChessBase"]
[SourceQuality "1"]
[TimeControl "5400+30"]

1. e4 {[%emt 0:04:00]} c5 {[%emt 0:01:00]} 2. Nf3 {[%emt 0:00:30]} e6 {[%emt 0:00:30]} 3. d4 {[%emt 0:00:30]} cxd4 {[%emt 0:00:30]} 4. Nxd4 {[%emt 0:00:30]} a6 {[%emt 0:00:00]} 5. Nc3 {[%emt 0:00:00]} b5 {[%emt 0:00:00]} 6. Bd3 {[%emt 0:00:00]} Bb7 {[%emt 0:00:30]} 7. O-O {[%emt 0:00:30]} Nc6 {[%emt 0:00:30]} 8. Nxc6 {[%emt 0:10:30]} Bxc6 {[%emt 0:02:30]} 9. Re1 {[%emt 0:03:30]} Qb8 {[%emt 0:03:30]} 10. a4 {[%emt 0:06:30]} b4 {[%emt 0:06:30]} 11. Nd5 {[%emt 0:01:30]} Bd6 {[%emt 0:01:30]} 12. h3 {[%emt 0:07:30]} Ne7 {[%emt 0:04:30]} 13. Nxe7 {[%emt 0:02:30]} Bxe7 {[%emt 0:00:00]} 14. e5 {[%emt 0:07:30]} Qb7 {[%emt 0:09:00]} 15. Qg4 {[%emt 0:02:30]} h5 {[%emt 0:11:30]} 16. Qg3 {[%emt 0:00:30]} O-O-O {[%emt 0:02:30]} 17. c3 {[%emt 0:05:30]} b3 {[%emt 0:04:30]} 18. Bg5 {[%emt 0:04:30]} f6 {[%emt 0:07:30]} 19. Be3 {[%emt 0:10:30]} g5 {[%emt 0:16:30]} 20. exf6 {[%emt 0:05:30]} Bxf6 {[%emt 0:01:30]} 21. a5 {[%emt 0:02:30]} d6 {[%emt 0:03:30]} 22. Bb6 {[%emt 0:03:30]} Kd7 {[%emt 0:09:20]} 23. Bxd8 {[%emt 0:01:30]} Rxd8 {[%emt 0:00:41]} 24. Qe3 {[%emt 0:02:25]} e5 {[%emt 0:02:00]} 25. Be4 {[%emt 0:05:19]} Bxe4 {[%emt 0:03:10]} 26. Qxe4 {[%emt 0:00:30]} Qxe4 {[%emt 0:00:30]} 27. Rxe4 {[%emt 0:00:00]} Rb8 {[%emt 0:00:00]} 28. Raa4 {[%emt 0:03:56]} Bd8 {[%emt 0:02:08]} 29. Reb4 {[%emt 0:00:51]} Rxb4 {[%emt 0:00:45]} 30. Rxb4 {[%emt 0:00:29]} Kc6 {[%emt 0:02:11]} 31. Rxb3 {[%emt 0:00:30]} Bxa5 {[%emt 0:00:04]} 32. Rb8 {[%emt 0:01:04]} d5 {[%emt 0:01:48]} 33. Rg8 {[%emt 0:02:01]} d4 {[%emt 0:01:43]} 34. cxd4 {[%emt 0:00:27]} exd4 {[%emt 0:00:00]} 35. Rxg5 {[%emt 0:00:43]} Bd8 {[%emt 0:01:03]} 36. Rxh5 {[%emt 0:00:13]} a5 {[%emt 0:00:33]} 37. Kf1 {[%emt 0:00:30]} a4 {[%emt 0:00:00]} 38. Ke2 {[%emt 0:00:26]} Be7 {[%emt 0:00:00]} 39. Kd3 {[%emt 0:00:15]} 1-0

[Event "Turkish Women-ch Arzum 2022"]
[Site "Ayvalik"]
[Date "2022.03.11"]
[Round "9.16"]
[White "Yalcin, Fahriye Zeynep"]
[Black "Bese, Irem"]
[Result "0-1"]
[ECO "C04"]
[WhiteElo "1260"]
[BlackElo "1714"]
[Annotator "NA"]
[PlyCount "72"]
[EventDate "2022.03.04"]
[EventType "swiss"]
[EventCountry "TUR"]
[SourceTitle "playchess.com"]
[Source "ChessBase"]
[SourceQuality "1"]
[TimeControl "5400+30"]

1. e4 e6 2. d4 d5 3. Nd2 Nc6 4. c3 {[%emt 0:01:30]} e5 {[%emt 0:01:30]} 5. exd5 {[%emt 0:05:30]} Qxd5 {[%emt 0:00:30]} 6. Qf3 {[%emt 0:01:30]} Qxf3 {[%emt 0:04:30]} 7. Ngxf3 {[%emt 0:00:00]} exd4 {[%emt 0:02:30]} 8. cxd4 {[%emt 0:00:00]} Nb4 {[%emt 0:01:30]} 9. Bb5+ {[%emt 0:01:30]} c6 {[%emt 0:01:30]} 10. Ba4 {[%emt 0:00:30]} Nd3+ {[%emt 0:00:30]} 11. Ke2 {[%emt 0:04:30]} Nf4+ {[%emt 0:01:30]} 12. Kf1 {[%emt 0:00:30]} Bf5 {[%emt 0:00:30]} 13. Ne1 {[%emt 0:00:30]} O-O-O {[%emt 0:03:30]} 14. Ndf3 {[%emt 0:00:30]} Nd5 {[%emt 0:05:30]} 15. Ne5 {[%emt 0:02:30]} Be6 {[%emt 0:00:30]} 16. Be3 {[%emt 0:01:30]} f6 {[%emt 0:01:30]} 17. N5d3 {[%emt 0:01:30]} Bd6 {[%emt 0:04:30]} 18. Rc1 {[%emt 0:01:30]} Nge7 {[%emt 0:02:30]} 19. Ke2 {[%emt 0:01:30]} Rhe8 {[%emt 0:01:30]} 20. a3 {[%emt 0:00:30]} Bg4+ {[%emt 0:01:30]} 21. Kd2 {[%emt 0:02:30]} Nf5 {[%emt 0:07:30]} 22. Nc2 {[%emt 0:00:30]} Nb6 {[%emt 0:01:30]} 23. Bb3 {[%emt 0:00:30]} Bc7 {[%emt 0:03:30]} 24. h3 {[%emt 0:02:30]} Nxe3 {[%emt 0:01:30]} 25. fxe3 {[%emt 0:00:30]} Bf5 {[%emt 0:00:30]} 26. Nc5 {[%emt 0:01:30]} Nd5 {[%emt 0:03:30]} 27. Bxd5 {[%emt 0:02:30]} Rxd5 {[%emt 0:01:30]} 28. Nb4 {[%emt 0:00:00]} Ba5 {[%emt 0:01:30]} 29. Rc4 {[%emt 0:03:00]} Bxb4+ {[%emt 0:05:30]} 30. Rxb4 {[%emt 0:01:30]} Red8 {[%emt 0:01:30]} 31. Nxb7 {[%emt 0:00:30]} R8d7 {[%emt 0:00:30]} 32. e4 {[%emt 0:03:30]} Bxe4 {[%emt 0:04:30]} 33. Re1 {[%emt 0:00:30]} f5 {[%emt 0:00:30]} 34. Ke3 {[%emt 0:02:30]} Rxb7 {[%emt 0:00:30]} 35. Rxb7 {[%emt 0:00:30]} Kxb7 {[%emt 0:00:00]} 36. g3 {[%emt 0:00:00]} a5 {[%emt 0:00:00]} 0-1

[Event "Turkish Women-ch Arzum 2022"]
[Site "Ayvalik"]
[Date "2022.03.11"]
[Round "9.18"]
[White "Akin, Duru"]
[Black "Alev, Gonulden Seda"]
[Result "1-0"]
[ECO "B28"]
[WhiteElo "1563"]
[BlackElo "1561"]
[Annotator "NA RC"]
[PlyCount "35"]
[EventDate "2022.03.04"]
[EventType "swiss"]
[EventCountry "TUR"]
[SourceTitle "playchess.com"]
[Source "ChessBase"]
[SourceQuality "1"]
[TimeControl "5400+30"]

1. e4 c5 2. Nf3 {[%emt 0:00:30]} a6 {[%emt 0:02:30]} 3. d4 {[%emt 0:00:30]} cxd4 {[%emt 0:00:30]} 4. Nxd4 {[%emt 0:00:30]} g6 {[%emt 0:00:30]} 5. Nc3 {[%emt 0:01:30]} Bg7 {[%emt 0:00:30]} 6. Be3 {[%emt 0:00:00]} b5 {[%emt 0:00:30]} 7. a4 {[%emt 0:03:00]} b4 {[%emt 0:01:30]} 8. Nd5 {[%emt 0:00:30]} Bb7 {[%emt 0:02:30]} 9. a5 {[%emt 0:15:30]} Nc6 {[%emt 0:04:30]} 10. Nb3 {[%emt 0:07:30]} Rb8 {[%emt 0:12:30]} 11. Bb6 {[%emt 0:02:30]} Qc8 {[%emt 0:00:30]} 12. Nc7+ {[%emt 0:04:30]} Kf8 {[%emt 0:00:30]} 13. Nc5 {[%emt 0:00:30]} d6 {[%emt 0:00:30]} 14. Nxb7 {[%emt 0:00:30]} Bxb2 {[%emt 0:01:30]} 15. Bxa6 {[%emt 0:03:30]} Rxb7 {[%emt 0:05:30]} 16. Bxb7 {[%emt 0:00:30]} Qxb7 {[%emt 0:00:00]} 17. Nd5 {[%emt 0:03:30]} e6 {[%emt 0:01:00]} 18. a6 {[%emt 0:00:30]} 1-0

[Event "Turkish Women-ch Arzum 2022"]
[Site "Ayvalik"]
[Date "2022.03.11"]
[Round "9.19"]
[White "Senkal, Defne"]
[Black "Gur, Tuba"]
[Result "1-0"]
[ECO "B32"]
[WhiteElo "1247"]
[BlackElo "1750"]
[Annotator "NA RC"]
[PlyCount "37"]
[EventDate "2022.03.04"]
[EventType "swiss"]
[EventCountry "TUR"]
[SourceTitle "playchess.com"]
[Source "ChessBase"]
[SourceQuality "1"]
[TimeControl "5400+30"]

1. e4 c5 2. Nf3 Nc6 3. d4 cxd4 4. Nxd4 e5 {[%emt 0:01:30]} 5. Nb5 {[%emt 0:02:00]} d6 {[%emt 0:00:00]} 6. N1c3 {[%emt 0:00:30]} a6 {[%emt 0:00:00]} 7. Na3 {[%emt 0:00:30]} b5 {[%emt 0:00:00]} 8. Nd5 {[%emt 0:00:30]} Nf6 {[%emt 0:00:00]} 9. Nxf6+ {[%emt 0:03:30]} Qxf6 {[%emt 0:00:00]} 10. c3 {[%emt 0:01:30]} Be6 {[%emt 0:03:00]} 11. Be2 {[%emt 0:03:30]} Be7 {[%emt 0:02:30]} 12. O-O {[%emt 0:02:30]} Qg6 {[%emt 0:01:30]} 13. Bf3 {[%emt 0:04:30]} O-O {[%emt 0:02:30]} 14. Nc2 {[%emt 0:00:30]} Rad8 {[%emt 0:02:30]} 15. Ne3 {[%emt 0:01:30]} f6 {[%emt 0:05:30]} 16. Nf5 {[%emt 0:03:30]} Qf7 {[%emt 0:00:30]} 17. Bh5 {[%emt 0:01:30]} d5 {[%emt 0:12:30]} 18. Bxf7+ {[%emt 0:00:00]} Bxf7 {[%emt 0:00:30]} 19. Qg4 {[%emt 0:02:00]} 1-0

[Event "Turkish Women-ch Arzum 2022"]
[Site "Ayvalik"]
[Date "2022.03.11"]
[Round "9.20"]
[White "Salt, Ilayda"]
[Black "Olmez, Sude"]
[Result "1/2-1/2"]
[ECO "E32"]
[WhiteElo "1594"]
[BlackElo "1170"]
[Annotator "NA"]
[PlyCount "171"]
[EventDate "2022.03.04"]
[EventType "swiss"]
[EventCountry "TUR"]
[SourceTitle "playchess.com"]
[Source "ChessBase"]
[SourceQuality "1"]
[TimeControl "5400+30"]

1. d4 {[%emt 0:10:00]} Nf6 {[%emt 0:01:00]} 2. c4 {[%emt 0:00:30]} e6 {[%emt 0:00:00]} 3. Nc3 {[%emt 0:00:30]} Bb4 {[%emt 0:01:00]} 4. Qc2 {[%emt 0:03:30]} O-O {[%emt 0:00:30]} 5. a3 {[%emt 0:00:00]} Bxc3+ {[%emt 0:00:30]} 6. Qxc3 {[%emt 0:00:00]} b6 {[%emt 0:01:30]} 7. f3 {[%emt 0:00:30]} d5 {[%emt 0:00:00]} 8. Bg5 {[%emt 0:00:30]} Nbd7 {[%emt 0:01:00]} 9. Rc1 {[%emt 0:02:30]} c6 {[%emt 0:05:30]} 10. e3 {[%emt 0:00:30]} Bb7 {[%emt 0:04:30]} 11. Bd3 {[%emt 0:01:30]} h6 {[%emt 0:05:30]} 12. Bh4 {[%emt 0:03:30]} c5 {[%emt 0:00:30]} 13. Ne2 {[%emt 0:00:30]} Rc8 {[%emt 0:01:30]} 14. Qd2 {[%emt 0:07:30]} Re8 {[%emt 0:02:30]} 15. O-O {[%emt 0:01:30]} e5 {[%emt 0:05:30]} 16. cxd5 {[%emt 0:01:30]} exd4 {[%emt 0:04:30]} 17. exd4 {[%emt 0:07:30]} Bxd5 {[%emt 0:03:30]} 18. Bf5 {[%emt 0:03:30]} Be6 {[%emt 0:04:30]} 19. Bb1 {[%emt 0:02:30]} cxd4 {[%emt 0:03:30]} 20. Nxd4 {[%emt 0:02:30]} Nc5 {[%emt 0:05:30]} 21. Qf2 {[%emt 0:12:30]} Bd7 {[%emt 0:06:30]} 22. Rfd1 {[%emt 0:02:30]} Ne6 {[%emt 0:04:30]} 23. Nf5 {[%emt 0:01:30]} Rxc1 {[%emt 0:00:30]} 24. Rxc1 {[%emt 0:00:30]} Nf4 {[%emt 0:03:30]} 25. Re1 {[%emt 0:14:30]} Bxf5 {[%emt 0:04:30]} 26. Rxe8+ {[%emt 0:02:09]} Qxe8 {[%emt 0:00:30]} 27. Bxf5 {[%emt 0:00:27]} Qe5 {[%emt 0:08:30]} 28. Bb1 {[%emt 0:05:34]} g5 {[%emt 0:10:43]} 29. Bg3 {[%emt 0:00:22]} Ne2+ {[%emt 0:00:13]} 30. Kf1 {[%emt 0:06:03]} Qxb2 {[%emt 0:01:36]} 31. Qxe2 {[%emt 0:00:39]} Qxb1+ {[%emt 0:00:07]} 32. Kf2 {[%emt 0:00:38]} Qf5 {[%emt 0:01:03]} 33. Bd6 {[%emt 0:01:24]} Qe6 {[%emt 0:01:32]} 34. Qd2 {[%emt 0:01:47]} Nd5 {[%emt 0:00:57]} 35. Bb8 {[%emt 0:01:11]} a6 {[%emt 0:00:34]} 36. Qd4 {[%emt 0:01:34]} b5 {[%emt 0:03:45]} 37. Ba7 {[%emt 0:03:52]} Nf4 {[%emt 0:00:59]} 38. Qe3 {[%emt 0:00:22]} Qa2+ {[%emt 0:00:56]} 39. Kf1 {[%emt 0:00:45]} Qxg2+ {[%emt 0:00:46]} 40. Ke1 {[%emt 0:00:10]} Qh1+ {[%emt 0:00:34]} 41. Kd2 {[%emt 0:00:45]} Qxh2+ {[%emt 0:00:30]} 42. Kc1 {[%emt 0:00:02]} Qe2 {[%emt 0:01:43]} 43. Qc3 {[%emt 0:01:09]} Qc4 {[%emt 0:02:33]} 44. Qxc4 {[%emt 0:00:43]} bxc4 {[%emt 0:00:30]} 45. Kc2 {[%emt 0:00:00]} h5 {[%emt 0:00:22]} 46. Kc3 {[%emt 0:00:45]} Kf8 {[%emt 0:00:32]} 47. Bc5+ {[%emt 0:00:00]} Ke8 {[%emt 0:01:01]} 48. Kxc4 {[%emt 0:00:00]} Kd7 {[%emt 0:00:00]} 49. Bf2 {[%emt 0:00:11]} Kc6 {[%emt 0:00:35]} 50. Kd4 {[%emt 0:00:58]} Nh3 {[%emt 0:00:42]} 51. Bg3 {[%emt 0:00:00]} h4 {[%emt 0:00:53]} 52. Bh2 {[%emt 0:00:04]} Nf4 {[%emt 0:00:15]} 53. Ke5 {[%emt 0:02:00]} Kb5 {[%emt 0:00:10]} 54. Kf5 {[%emt 0:00:37]} Ne6 {[%emt 0:01:59]} 55. Bd6 {[%emt 0:00:41]} Ka4 {[%emt 0:00:47]} 56. Kg4 {[%emt 0:00:30]} Kb3 {[%emt 0:00:04]} 57. Be7 {[%emt 0:00:47]} Ka4 {[%emt 0:00:53]} 58. Bd6 {[%emt 0:00:30]} Kb3 {[%emt 0:00:30]} 59. Be7 {[%emt 0:00:00]} Kc4 {[%emt 0:00:00]} 60. Bd6 {[%emt 0:00:53]} Kd5 {[%emt 0:00:00]} 61. Bb8 {[%emt 0:00:09]} Nd4 {[%emt 0:01:13]} 62. Kxg5 {[%emt 0:01:11]} Nxf3+ {[%emt 0:00:30]} 63. Kg4 {[%emt 0:00:30]} Ke4 {[%emt 0:00:00]} 64. Kh3 {[%emt 0:00:00]} f5 {[%emt 0:00:15]} 65. Kg2 {[%emt 0:00:29]} Ng5 {[%emt 0:00:58]} 66. Bc7 {[%emt 0:01:01]} f4 {[%emt 0:00:25]} 67. Bd8 {[%emt 0:00:13]} h3+ {[%emt 0:00:51]} 68. Kh2 {[%emt 0:00:30]} Kf5 {[%emt 0:00:00]} 69. a4 {[%emt 0:00:44]} Kg4 {[%emt 0:00:14]} 70. Bxg5 {[%emt 0:00:30]} Kxg5 {[%emt 0:00:30]} 71. Kxh3 {[%emt 0:00:05]} Kf5 {[%emt 0:00:00]} 72. Kg2 {[%emt 0:00:30]} Ke4 {[%emt 0:00:10]} 73. Kf2 {[%emt 0:00:00]} f3 {[%emt 0:00:00]} 74. a5 {[%emt 0:00:58]} Kf4 {[%emt 0:00:16]} 75. Kf1 {[%emt 0:00:30]} Ke3 {[%emt 0:00:30]} 76. Ke1 {[%emt 0:00:00]} Kd4 {[%emt 0:00:03]} 77. Kf2 {[%emt 0:00:11]} Kc4 {[%emt 0:00:30]} 78. Kxf3 {[%emt 0:00:30]} Kb5 {[%emt 0:00:30]} 79. Ke3 {[%emt 0:00:00]} Kxa5 {[%emt 0:00:00]} 80. Kd3 {[%emt 0:00:00]} Kb4 {[%emt 0:00:00]} 81. Kc2 {[%emt 0:00:01]} Ka3 {[%emt 0:00:12]} 82. Kb1 {[%emt 0:00:30]} a5 {[%emt 0:00:30]} 83. Ka1 {[%emt 0:00:00]} Kb3 {[%emt 0:00:06]} 84. Kb1 {[%emt 0:00:08]} a4 {[%emt 0:00:30]} 85. Ka1 {[%emt 0:00:30]} a3 {[%emt 0:00:00]} 86. Kb1 {[%emt 0:00:00]} 1/2-1/2

[Event "Turkish Women-ch Arzum 2022"]
[Site "Ayvalik"]
[Date "2022.03.11"]
[Round "9.21"]
[White "Zengin, Ovgu"]
[Black "Yazici, Zumral"]
[Result "1/2-1/2"]
[ECO "C54"]
[WhiteElo "1475"]
[BlackElo "1229"]
[Annotator "NA"]
[PlyCount "153"]
[EventDate "2022.03.04"]
[EventType "swiss"]
[EventCountry "TUR"]
[SourceTitle "playchess.com"]
[Source "ChessBase"]
[SourceQuality "1"]
[TimeControl "5400+30"]

1. e4 e5 2. Nf3 Nc6 3. Bc4 Bc5 4. c3 Nf6 5. d3 d6 {[%emt 0:01:00]} 6. O-O {[%emt 0:02:30]} a6 {[%emt 0:00:00]} 7. a4 {[%emt 0:00:30]} h6 {[%emt 0:01:00]} 8. Re1 {[%emt 0:01:30]} O-O {[%emt 0:06:30]} 9. Nbd2 {[%emt 0:02:30]} Ba7 {[%emt 0:03:30]} 10. b4 {[%emt 0:04:30]} Be6 {[%emt 0:09:30]} 11. Bxe6 {[%emt 0:02:30]} fxe6 {[%emt 0:00:00]} 12. Nf1 {[%emt 0:08:30]} b5 {[%emt 0:05:00]} 13. Be3 {[%emt 0:03:30]} Bxe3 {[%emt 0:01:30]} 14. Nxe3 {[%emt 0:06:30]} Qd7 {[%emt 0:03:30]} 15. axb5 {[%emt 0:13:30]} axb5 {[%emt 0:00:00]} 16. Qb3 {[%emt 0:02:30]} d5 {[%emt 0:03:00]} 17. Nc2 {[%emt 0:04:30]} Rxa1 {[%emt 0:03:30]} 18. Nxa1 {[%emt 0:00:30]} Re8 {[%emt 0:06:30]} 19. Qc2 {[%emt 0:07:30]} Qd6 {[%emt 0:04:30]} 20. Nb3 {[%emt 0:02:30]} Nb8 {[%emt 0:01:30]} 21. d4 {[%emt 0:12:30]} Nbd7 {[%emt 0:03:30]} 22. exd5 {[%emt 0:03:30]} exd5 {[%emt 0:01:30]} 23. dxe5 {[%emt 0:07:56]} Nxe5 {[%emt 0:00:00]} 24. Nfd4 {[%emt 0:01:10]} c6 {[%emt 0:13:00]} 25. f4 {[%emt 0:03:50]} Nc4 {[%emt 0:04:30]} 26. Rxe8+ {[%emt 0:00:30]} Nxe8 {[%emt 0:00:30]} 27. Qf5 {[%emt 0:02:09]} Nc7 {[%emt 0:11:52]} 28. Nc5 {[%emt 0:00:15]} Ne3 {[%emt 0:04:57]} 29. Qe5 {[%emt 0:00:54]} Qxe5 {[%emt 0:01:52]} 30. fxe5 {[%emt 0:00:08]} Nd1 {[%emt 0:00:21]} 31. Ne2 {[%emt 0:02:59]} Kf7 {[%emt 0:00:37]} 32. Kf1 {[%emt 0:01:39]} Ne3+ {[%emt 0:01:05]} 33. Kg1 {[%emt 0:00:45]} Nc4 {[%emt 0:00:53]} 34. Nd3 {[%emt 0:00:14]} Ke6 {[%emt 0:00:46]} 35. Nd4+ {[%emt 0:00:12]} Kf7 {[%emt 0:00:48]} 36. Nxc6 {[%emt 0:00:01]} Ne3 {[%emt 0:03:29]} 37. Nd4 {[%emt 0:00:46]} Nd1 {[%emt 0:01:49]} 38. Ne2 {[%emt 0:01:15]} Ne6 {[%emt 0:00:33]} 39. Ndc1 {[%emt 0:00:45]} Ng5 {[%emt 0:00:24]} 40. Nb3 {[%emt 0:01:27]} Ne4 {[%emt 0:00:48]} 41. Ned4 {[%emt 0:00:50]} Nexc3 {[%emt 0:00:44]} 42. Nc5 {[%emt 0:00:53]} Ne3 {[%emt 0:03:09]} 43. e6+ {[%emt 0:00:26]} Kf6 {[%emt 0:01:26]} 44. Nd7+ {[%emt 0:00:38]} Ke7 {[%emt 0:00:04]} 45. Nc5 {[%emt 0:00:05]} Ng4 {[%emt 0:01:02]} 46. Nf5+ {[%emt 0:00:27]} Kd8 {[%emt 0:01:50]} 47. Nxg7 {[%emt 0:00:12]} Nf6 {[%emt 0:00:44]} 48. Nf5 {[%emt 0:00:24]} h5 {[%emt 0:00:40]} 49. e7+ {[%emt 0:00:09]} Ke8 {[%emt 0:00:20]} 50. Ne6 {[%emt 0:00:10]} Na2 {[%emt 0:00:37]} 51. Nc7+ {[%emt 0:01:14]} Kd7 {[%emt 0:00:12]} 52. Nxb5 {[%emt 0:01:16]} Nxb4 {[%emt 0:00:03]} 53. Nbd4 {[%emt 0:00:24]} Nc6 {[%emt 0:00:51]} 54. Nxc6 {[%emt 0:00:41]} Kxc6 {[%emt 0:00:01]} 55. Ng7 {[%emt 0:00:30]} Kd7 {[%emt 0:00:30]} 56. e8=Q+ {[%emt 0:00:00]} Nxe8 {[%emt 0:00:00]} 57. Nxh5 {[%emt 0:00:24]} Kc6 {[%emt 0:00:00]} 58. Kf2 {[%emt 0:00:17]} Nd6 {[%emt 0:00:00]} 59. Ke3 {[%emt 0:00:26]} Kc5 {[%emt 0:00:12]} 60. Kd3 {[%emt 0:00:02]} Nc4 {[%emt 0:00:11]} 61. Nf4 {[%emt 0:00:50]} Ne5+ {[%emt 0:00:29]} 62. Kd2 {[%emt 0:01:00]} Nc4+ {[%emt 0:00:51]} 63. Ke2 {[%emt 0:00:46]} d4 {[%emt 0:00:12]} 64. g3 {[%emt 0:01:15]} Kd6 {[%emt 0:00:48]} 65. Kd3 {[%emt 0:01:13]} Ne5+ {[%emt 0:00:03]} 66. Ke4 {[%emt 0:00:16]} Ng4 {[%emt 0:01:06]} 67. h3 {[%emt 0:00:34]} Nh6 {[%emt 0:00:30]} 68. g4 {[%emt 0:00:12]} Ke7 {[%emt 0:00:50]} 69. Kxd4 {[%emt 0:00:06]} Kf6 {[%emt 0:00:04]} 70. Ke4 {[%emt 0:00:49]} Kg5 {[%emt 0:00:08]} 71. Kf3 {[%emt 0:00:53]} Kh4 {[%emt 0:00:02]} 72. Ng6+ {[%emt 0:01:23]} Kxh3 {[%emt 0:00:34]} 73. g5 {[%emt 0:00:30]} Nf7 {[%emt 0:00:00]} 74. Nf4+ {[%emt 0:00:15]} Kh4 {[%emt 0:00:00]} 75. g6 {[%emt 0:00:00]} Ne5+ {[%emt 0:00:00]} 76. Ke4 {[%emt 0:00:58]} Nxg6 {[%emt 0:00:00]} 77. Nxg6+ {[%emt 0:00:27]} 1/2-1/2

[Event "Turkish Women-ch Arzum 2022"]
[Site "Ayvalik"]
[Date "2022.03.11"]
[Round "9.22"]
[White "Engin, Cagla"]
[Black "Bassari, Senem Gul"]
[Result "1-0"]
[ECO "B13"]
[WhiteElo "1436"]
[BlackElo "1197"]
[Annotator "NA"]
[PlyCount "119"]
[EventDate "2022.03.04"]
[EventType "swiss"]
[EventCountry "TUR"]
[SourceTitle "playchess.com"]
[Source "ChessBase"]
[SourceQuality "1"]
[TimeControl "5400+30"]

1. e4 c6 2. d4 d5 3. exd5 cxd5 4. Bd3 {[%emt 0:01:30]} Nc6 {[%emt 0:01:30]} 5. c3 {[%emt 0:00:00]} Nf6 {[%emt 0:01:30]} 6. h3 {[%emt 0:01:00]} e5 {[%emt 0:00:30]} 7. dxe5 {[%emt 0:05:30]} Nxe5 {[%emt 0:00:30]} 8. Nf3 {[%emt 0:00:30]} Nxd3+ {[%emt 0:01:30]} 9. Qxd3 {[%emt 0:00:30]} Bd6 {[%emt 0:00:30]} 10. O-O {[%emt 0:00:30]} O-O {[%emt 0:05:30]} 11. Be3 {[%emt 0:00:30]} b6 {[%emt 0:10:30]} 12. Nbd2 {[%emt 0:05:30]} Bb7 {[%emt 0:01:30]} 13. Nd4 {[%emt 0:01:30]} Qd7 {[%emt 0:14:30]} 14. Nf5 {[%emt 0:05:30]} Bc8 {[%emt 0:16:30]} 15. Nxd6 {[%emt 0:02:30]} Qxd6 {[%emt 0:01:30]} 16. Bd4 {[%emt 0:00:30]} Nh5 {[%emt 0:08:30]} 17. Rae1 {[%emt 0:03:30]} Qg6 {[%emt 0:06:30]} 18. Qxg6 {[%emt 0:01:30]} fxg6 {[%emt 0:00:30]} 19. Re7 {[%emt 0:02:30]} Ba6 {[%emt 0:02:30]} 20. Rfe1 {[%emt 0:00:30]} Nf6 {[%emt 0:01:30]} 21. Nf3 {[%emt 0:05:30]} Bb5 {[%emt 0:04:30]} 22. Ne5 {[%emt 0:07:30]} Rfe8 {[%emt 0:01:36]} 23. Ng4 {[%emt 0:02:30]} Nh5 {[%emt 0:02:29]} 24. R1e5 {[%emt 0:04:30]} Rxe7 {[%emt 0:01:38]} 25. Rxe7 {[%emt 0:00:30]} Bc6 {[%emt 0:03:28]} 26. Rc7 {[%emt 0:04:30]} Bb5 {[%emt 0:00:33]} 27. Ne3 {[%emt 0:00:30]} Nf6 {[%emt 0:01:35]} 28. Bxf6 {[%emt 0:04:30]} gxf6 {[%emt 0:00:09]} 29. Nxd5 {[%emt 0:00:30]} f5 {[%emt 0:00:53]} 30. Nf6+ {[%emt 0:00:30]} Kf8 {[%emt 0:00:00]} 31. Rxh7 {[%emt 0:00:30]} Bc6 {[%emt 0:02:00]} 32. h4 {[%emt 0:03:30]} Rd8 {[%emt 0:01:31]} 33. Rh8+ {[%emt 0:01:30]} Ke7 {[%emt 0:00:30]} 34. Rxd8 {[%emt 0:00:30]} Kxd8 {[%emt 0:00:00]} 35. g3 {[%emt 0:00:00]} Ke7 {[%emt 0:00:28]} 36. Nh7 {[%emt 0:00:00]} Kd6 {[%emt 0:00:39]} 37. Kf1 {[%emt 0:00:00]} a5 {[%emt 0:01:51]} 38. Ke2 {[%emt 0:00:00]} Bd5 {[%emt 0:00:54]} 39. b3 {[%emt 0:01:30]} a4 {[%emt 0:04:05]} 40. bxa4 {[%emt 0:02:30]} Bxa2 {[%emt 0:00:10]} 41. Kd3 {[%emt 0:00:30]} Bb3 {[%emt 0:03:23]} 42. Nf8 {[%emt 0:00:00]} Bf7 {[%emt 0:00:03]} 43. Kd4 {[%emt 0:01:00]} Ke7 {[%emt 0:00:51]} 44. Nh7 {[%emt 0:00:00]} Bb3 {[%emt 0:00:27]} 45. Ke5 {[%emt 0:00:00]} Bxa4 {[%emt 0:00:33]} 46. Nf6 {[%emt 0:00:30]} Kf7 {[%emt 0:00:54]} 47. Nd5 {[%emt 0:01:30]} b5 {[%emt 0:00:58]} 48. Kd6 {[%emt 0:00:30]} Bd1 {[%emt 0:00:28]} 49. Nc7 {[%emt 0:00:30]} Be2 {[%emt 0:00:30]} 50. Kc5 {[%emt 0:00:00]} Kf6 {[%emt 0:00:19]} 51. Nxb5 {[%emt 0:00:00]} Ke5 {[%emt 0:00:19]} 52. Nd4 {[%emt 0:00:30]} Ba6 {[%emt 0:00:00]} 53. Nf3+ {[%emt 0:03:30]} Ke4 {[%emt 0:00:26]} 54. Ng5+ {[%emt 0:00:30]} Kd3 {[%emt 0:00:24]} 55. Kd5 {[%emt 0:02:30]} Ke2 {[%emt 0:00:51]} 56. Ke5 {[%emt 0:01:30]} Kxf2 {[%emt 0:00:30]} 57. Kf4 {[%emt 0:00:30]} Bb5 {[%emt 0:01:27]} 58. Nf7 {[%emt 0:00:30]} Bc6 {[%emt 0:01:10]} 59. Ne5 {[%emt 0:00:30]} Be8 {[%emt 0:00:30]} 60. c4 {[%emt 0:00:00]} 1-0